bitfinex/quotes_ETHUSD_20251201
["timestamp","ask_amount","ask_price","bid_price","bid_amount"]
[1764619331452,1.29504538,2757.1,2756.6,0.36277804]
[1764619331624,7.25426186,2757.0,2756.8,0.09979107]
[1764619332052,7.25426186,2757.0,2756.7,0.36277804]
[1764619332053,10.88139279,2757.0,2756.7,0.36277804]
[1764619332260,1.21764382,2756.9,2756.7,0.36277804]
[1764619332761,1.21764382,2756.9,2756.6,0.36277804]
[1764619332960,1.21764382,2756.9,2755.3,9.50404337]
[1764619332961,1.21764382,2756.9,2756.0,0.579]
[1764619333461,1.21764382,2756.9,2756.3,0.36277804]
[1764619333797,10.88218224,2756.8,2756.3,0.36277804]
[1764619333943,1.20998261,2756.7,2755.8,0.579]
[1764619334142,1.20998261,2756.7,2755.9,0.36277804]
[1764619334543,1.20998261,2756.7,2756.0,0.09979107]
[1764619334743,1.20921649,2756.6,2756.0,0.09979107]
[1764619335386,1.20921649,2756.6,2756.1,0.36277804]
[1764619335552,1.20921649,2756.6,2755.8,0.579]
[1764619335885,7.25557772,2756.5,2756.2,0.09979107]
[1764619336088,1.20924559,2756.4,2756.1,0.36277804]
[1764619336581,1.20924559,2756.4,2755.6,0.579]
[1764619336960,1.20924559,2756.4,2755.8,0.36277804]
[1764619337754,3.62805209,2756.3,2755.8,0.36277804]
[1764619337956,3.62805209,2756.3,2755.7,3.62879964]
[1764619338199,0.84652757,2756.3,2756.1,0.19958214]
[1764619338364,3.62727941,2756.9,2756.2,0.19958214]
[1764619338689,3.62727941,2756.9,2755.7,3.62879964]
[1764619338690,3.62713093,2757.0,2756.5,0.09979107]
[1764619338877,4.41044587,2757.0,2756.7,0.09979107]
[1764619339192,8.0375768,2757.0,2756.7,0.09979107]
[1764619339959,4.41044587,2757.0,2756.7,0.09979107]
[1764619340387,8.0375768,2757.0,2756.7,0.09979107]
[1764619340588,11.66470773,2757.0,2756.6,0.09979107]
[1764619340763,1.22437077,2756.9,2755.7,7.25768406]
[1764619341085,1.22437077,2756.9,2756.1,0.19958214]
[1764619341290,0.405504,2756.8,2755.5,0.09979107]
[1764619341493,1.94996488,2756.9,2755.5,0.09979107]
[1764619341494,0.405504,2756.6,2755.5,0.09979107]
[1764619341693,0.405504,2756.4,2754.0,3.6319812]
[1764619341879,1.13109811,2755.8,2754.1,0.9457906]
[1764619342055,0.405504,2755.6,2754.5,0.36277804]
[1764619342470,0.405504,2755.4,2754.5,0.36277804]
[1764619342692,0.405504,2755.4,2754.0,0.58]
[1764619342693,0.579,2755.3,2754.0,0.58]
[1764619342991,0.579,2755.3,2754.3,0.09979107]
[1764619343195,0.94255014,2755.3,2754.3,0.09979107]
[1764619343505,0.94255014,2755.3,2754.1,0.09979107]
[1764619343506,0.76905414,2755.2,2754.1,0.09979107]
[1764619343701,0.405504,2755.2,2754.1,0.09979107]
[1764619343873,1.13109811,2755.0,2754.1,0.09979107]
[1764619344079,1.56496274,2754.9,2754.1,0.09979107]
[1764619344388,1.56496274,2754.9,2754.0,0.001]
[1764619344695,2.14396274,2754.9,2754.0,0.001]
[1764619345676,2.14396274,2754.9,2754.0,0.36377804]
[1764619345994,0.405504,2754.4,2754.0,0.001]
[1764619346317,0.72559411,2754.6,2754.0,0.001]
[1764619346522,0.72559411,2754.6,2754.0,0.10079107]
[1764619346813,3.63015936,2754.7,2754.0,0.36377804]
[1764619346966,7.26031872,2754.7,2754.0,0.001]
[1764619347167,0.38445556,2754.6,2754.4,0.09979107]
[1764619347394,0.38445556,2754.6,2754.3,0.09979107]
[1764619347613,0.38445556,2754.6,2754.4,0.36277804]
[1764619347769,3.63015936,2754.7,2754.0,0.001]
[1764619347770,7.26031872,2754.7,2754.0,0.001]
[1764619347968,3.62979796,2755.0,2754.0,0.001]
[1764619347969,0.72559411,2754.9,2754.0,0.001]
[1764619348193,7.25959592,2755.0,2754.0,3.63207232]
[1764619348493,7.25959592,2755.0,2754.7,0.09979107]
[1764619348693,0.78385959,2754.9,2754.7,0.09979107]
[1764619349988,7.26005516,2754.8,2754.0,0.001]
[1764619350170,10.89008274,2754.8,2754.0,0.001]
[1764619350594,7.26005516,2754.8,2754.4,0.36277804]
[1764619351165,3.63002758,2754.8,2754.4,0.36277804]
[1764619351392,0.80438296,2754.7,2754.4,0.36277804]
[1764619352197,7.26058228,2754.6,2754.2,0.09979107]
[1764619352705,0.72559411,2754.5,2754.0,0.001]
[1764619352887,0.405504,2754.4,2754.0,0.001]
[1764619353513,0.76905414,2754.4,2754.0,0.001]
[1764619353872,0.405504,2754.4,2754.0,0.001]
[1764619354170,7.26137312,2754.3,2754.0,0.001]
[1764619354369,1.12974764,2754.2,2754.0,0.001]
[1764619355773,7.26137312,2754.3,2754.0,0.001]
[1764619355774,0.80438296,2754.7,2754.2,0.36277804]
[1764619355971,3.63002758,2754.8,2754.2,0.36277804]
[1764619356402,3.63002758,2754.8,2754.5,0.36277804]
[1764619356598,7.26014333,2754.8,2754.5,0.36277804]
[1764619357400,7.2599222,2754.9,2754.5,0.36277804]
[1764619357602,7.98591442,2754.9,2754.5,0.36277804]
[1764619358290,11.61587552,2754.9,2754.0,0.001]
[1764619358491,11.61587552,2754.9,2754.3,0.19958214]
[1764619358679,7.98591442,2754.9,2754.4,0.19958214]
[1764619359292,0.79859144,2754.8,2754.4,0.19958214]
[1764619359496,3.62940424,2755.3,2754.0,0.001]
[1764619359497,7.2574207,2755.8,2754.0,0.001]
[1764619359687,0.579,2755.7,2754.0,0.581]
[1764619360026,0.405504,2755.6,2754.3,0.36277804]
[1764619360206,0.405504,2755.2,2754.3,0.36277804]
[1764619360504,7.83926462,2755.1,2754.3,0.36277804]
[1764619360673,7.83926462,2755.1,2754.0,0.001]
[1764619360674,7.25926462,2755.1,2754.1,3.63094466]
[1764619360882,7.25926462,2755.1,2754.0,3.63201171]
[1764619360883,10.88889693,2755.1,2754.0,3.63201171]
[1764619361084,10.88889693,2755.1,2754.4,0.29937321]
[1764619361477,10.88889693,2755.1,2754.0,7.26309377]
[1764619361802,1.08888969,2755.0,2754.4,0.36277804]
[1764619361988,1.08888969,2755.0,2754.7,0.09979107]
[1764619362386,3.62989582,2754.9,2754.4,3.63054879]
[1764619362588,3.62989582,2754.9,2754.8,0.36277804]
[1764619362787,4.71872337,2755.0,2754.8,0.36277804]
[1764619362992,7.25966736,2755.0,2754.8,0.36277804]
[1764619363595,3.62983368,2755.0,2754.8,0.36277804]
[1764619364002,3.62857868,2755.9,2754.5,0.579]
[1764619364208,3.62857868,2755.9,2755.5,0.36277804]
[1764619364429,0.72559411,2756.0,2755.5,0.36277804]
[1764619364733,0.43539095,2755.9,2755.5,0.36277804]
[1764619364929,3.62765725,2756.6,2755.7,0.09979107]
[1764619365128,0.002,2756.8,2756.2,0.09979107]
[1764619365327,0.002,2756.8,2755.5,0.58]
[1764619365328,3.62940724,2756.8,2756.4,0.09979107]
[1764619365497,3.62940724,2756.8,2755.5,0.58]
[1764619365695,0.002,2756.8,2756.5,0.09979107]
[1764619365906,0.002,2756.8,2755.6,1.14676232]
[1764619365907,0.002,2756.8,2756.1,0.58]
[1764619366112,0.002,2756.8,2756.7,0.09979107]
[1764619366723,0.002,2756.8,2756.7,3.72731673]
[1764619367025,0.002,2756.8,2756.7,0.09979107]
[1764619369729,0.002,2756.8,2756.7,0.59454066]
[1764619370122,0.002,2756.8,2756.7,0.09979107]
[1764619370622,0.002,2756.8,2756.7,0.36277804]
[1764619371535,0.002,2756.8,2756.3,0.579]
[1764619371703,0.002,2756.8,2756.7,0.36277804]
[1764619372635,0.002,2756.8,2756.2,0.36277804]
[1764619372932,0.002,2756.8,2755.8,0.09979107]
[1764619373140,0.002,2756.8,2755.9,0.09979107]
[1764619373639,0.36555014,2756.8,2755.9,0.09979107]
[1764619373938,0.36555014,2756.8,2756.0,0.09979107]
[1764619373939,0.002,2756.8,2756.0,0.09979107]
[1764619374142,0.002,2756.8,2754.6,7.26058228]
[1764619374143,0.407504,2756.8,2754.6,7.26058228]
[1764619374440,0.407504,2756.8,2754.7,9.93276776]
[1764619374640,10.88257698,2756.7,2755.9,0.09979107]
[1764619374847,0.72559411,2756.6,2755.9,0.09979107]
[1764619375218,0.72559411,2756.6,2755.8,0.36277804]
[1764619375413,1.55992469,2756.5,2755.8,0.36277804]
[1764619375941,1.55992469,2756.5,2755.3,4.20832465]
[1764619376146,1.55992469,2756.5,2755.5,0.09979107]
[1764619376639,1.55992469,2756.5,2755.7,0.09979107]
[1764619376846,7.25584094,2756.4,2755.7,0.09979107]
[1764619377042,0.88157656,2756.3,2755.7,0.09979107]
[1764619377244,4.35342693,2756.5,2755.4,3.62920678]
[1764619377437,7.98125975,2756.5,2756.0,0.36277804]
[1764619377742,7.98125975,2756.5,2755.9,0.36277804]
[1764619378526,3.62783282,2756.5,2756.2,0.36277804]
[1764619378843,7.25678816,2756.8,2756.2,0.36277804]
[1764619379043,1.14630825,2756.7,2756.2,0.36277804]
[1764619379444,1.14630825,2756.7,2756.1,0.36277804]
[1764619381014,1.14630825,2756.7,2754.5,16.61461364]
[1764619381015,0.405504,2756.5,2754.5,16.61461364]
[1764619381225,0.94255014,2756.4,2755.4,0.19958214]
[1764619381644,0.579,2756.4,2755.7,0.36277804]
[1764619381833,0.579,2756.4,2755.3,0.579]
[1764619382033,1.228727,2756.4,2755.5,0.36277804]
[1764619382335,1.228727,2756.4,2755.6,0.09979107]
[1764619382575,1.228727,2756.4,2755.9,0.36277804]
[1764619382720,1.228727,2756.4,2755.4,0.19958214]
[1764619382919,7.25636746,2756.2,2755.5,0.19958214]
[1764619383436,10.88455119,2756.2,2754.4,3.63044515]
[1764619383640,0.72559411,2756.1,2755.4,0.19958214]
[1764619383835,0.72559411,2756.1,2754.7,4.20915936]
[1764619384035,0.72559411,2756.1,2754.8,0.78393241]
[1764619384036,1.5238329,2756.0,2754.8,0.78393241]
[1764619384236,1.5238329,2756.0,2754.9,0.579]
[1764619384535,0.36355014,2755.8,2754.7,0.19958214]
[1764619384735,0.36355014,2755.8,2754.6,0.579]
[1764619384736,0.36355014,2755.8,2754.8,0.09979107]
[1764619384919,10.88652609,2755.7,2754.8,0.09979107]
[1764619385116,1.12500762,2755.6,2754.8,0.09979107]
[1764619385335,1.12500762,2755.6,2754.6,0.67879107]
[1764619385515,3.62857868,2755.9,2755.1,0.36277804]
[1764619385729,7.25724944,2755.9,2755.1,0.36277804]
[1764619385931,10.8859202,2755.9,2755.1,0.36277804]
[1764619386636,7.25724944,2755.9,2755.1,0.36277804]
[1764619386824,7.25505132,2756.7,2755.2,0.579]
[1764619387029,7.98075645,2756.7,2755.2,0.579]
[1764619387252,0.72559411,2756.6,2756.2,0.36277804]
[1764619387620,0.72559411,2756.6,2755.3,7.2587377]
[1764619387621,0.72559411,2756.6,2756.1,0.36277804]
[1764619389049,7.25557772,2756.5,2756.1,0.36277804]
[1764619389253,8.12626542,2756.5,2756.1,0.36277804]
[1764619390034,0.002,2756.2,2756.1,0.36277804]
[1764619390230,0.002,2756.2,2755.3,7.2587377]
[1764619390469,0.002,2756.2,2756.0,0.09979107]
[1764619390757,0.002,2756.2,2755.3,7.2587377]
[1764619390758,0.002,2756.2,2756.1,0.09979107]
[1764619391766,0.002,2756.2,2755.4,0.19958214]
[1764619392067,0.002,2756.2,2755.1,0.58]
[1764619392366,0.002,2756.2,2755.5,0.36277804]
[1764619392527,0.002,2756.2,2755.3,0.19958214]
[1764619393026,0.002,2756.2,2755.5,0.36277804]
[1764619393368,0.002,2756.2,2756.1,0.09979107]
[1764619393545,0.002,2756.2,2756.1,0.67979107]
[1764619395136,0.002,2756.2,2756.1,3.62831537]
[1764619395341,0.002,2756.2,2756.1,4.30810644]
[1764619397147,0.002,2756.2,2756.1,3.72810644]
[1764619397348,0.002,2756.2,2756.1,4.30810644]
[1764619397581,0.002,2756.2,2756.1,4.73891708]
[1764619399262,0.002,2756.2,2756.1,5.00190405]
[1764619401372,0.002,2756.2,2756.1,5.00090405]
[1764619402783,0.002,2756.2,2756.1,0.79358868]
[1764619402978,0.002,2756.2,2755.9,0.19958214]
[1764619403139,0.002,2756.2,2755.9,0.77858214]
[1764619403455,0.002,2756.2,2755.9,4.20755739]
[1764619403653,0.002,2756.2,2756.1,0.36277804]
[1764619404966,0.002,2756.2,2756.1,0.81981158]
[1764619405469,0.002,2756.2,2756.1,4.44812695]
[1764619405771,0.002,2756.2,2756.1,0.09979107]
[1764619406465,0.002,2756.2,2756.1,0.67879107]
[1764619407240,0.002,2756.2,2756.1,0.09979107]
[1764619407477,0.002,2756.2,2755.3,0.19958214]
[1764619407879,0.002,2756.2,2755.2,0.579]
[1764619408084,0.002,2756.2,2755.5,0.36277804]
[1764619408743,0.002,2756.2,2755.2,0.579]
[1764619408944,1.46409669,2756.2,2755.2,4.30828064]
[1764619409244,1.10054655,2756.2,2755.5,0.36277804]
[1764619411073,7.25663074,2756.1,2755.5,0.36277804]
[1764619412264,0.002,2756.2,2755.5,7.35794623]
[1764619412476,0.002,2756.2,2756.1,0.09979107]
[1764619412779,0.002,2756.2,2756.1,0.67879107]
[1764619413075,0.002,2756.2,2756.1,4.30710644]
[1764619416191,0.002,2756.5,2756.4,0.36277804]
[1764619416395,0.002,2756.5,2756.4,10.44213991]
[1764619416568,0.002,2756.5,2756.4,11.3478572]
[1764619417180,0.002,2756.5,2756.4,14.97577767]
[1764619417983,0.002,2756.5,2756.4,4.8964158]
[1764619418166,0.002,2756.5,2756.4,5.21242883]
[1764619421199,0.002,2756.5,2756.4,1.00550836]
[1764619421365,0.002,2756.5,2756.4,0.67879107]
[1764619421561,0.002,2756.5,2756.4,4.30671154]
[1764619424987,0.002,2756.5,2756.4,3.72771154]
[1764619425183,0.002,2756.5,2756.4,4.30671154]
[1764619427488,0.002,2756.5,2756.4,0.67879107]
[1764619428096,0.002,2756.5,2756.4,4.20692047]
[1764619428270,0.002,2756.5,2756.4,0.67879107]
[1764619429871,0.002,2756.5,2756.4,0.579]
[1764619430815,0.002,2756.5,2756.4,0.67879107]
[1764619431909,0.002,2756.5,2756.1,3.62924398]
[1764619431910,0.002,2756.5,2756.1,0.001]
[1764619432204,0.002,2756.5,2756.1,0.94177804]
[1764619432979,0.002,2756.5,2756.1,4.20731537]
[1764619433297,0.002,2756.5,2756.4,0.36277804]
[1764619433603,0.002,2756.5,2756.2,0.42073154]
[1764619433808,0.002,2756.5,2756.4,0.19958214]
[1764619434599,0.002,2756.5,2756.4,3.82750261]
[1764619437708,0.002,2756.5,2756.4,0.36277804]
[1764619437929,0.002,2756.5,2756.4,1.16673768]
[1764619439904,0.002,2756.5,2756.4,4.79465815]
[1764619441214,0.002,2756.5,2756.4,0.36277804]
[1764619441414,0.002,2756.5,2756.4,0.67779107]
[1764619441819,0.002,2756.5,2756.4,4.30571154]
[1764619446323,0.002,2756.5,2756.4,5.03130565]
[1764619446622,0.24640008,2757.7,2757.6,0.19958214]
[1764619446922,0.24640008,2757.7,2757.6,0.77758214]
[1764619447995,0.24640008,2757.7,2757.6,4.40392388]
[1764619450527,0.24640008,2757.7,2757.6,5.20696199]
[1764619455813,0.24640008,2757.7,2757.6,4.62896199]
[1764619456137,0.24640008,2757.7,2757.6,5.20696199]
[1764619458344,0.24640008,2757.7,2757.6,4.62896199]
[1764619458544,0.24640008,2757.7,2757.5,0.09979107]
[1764619458712,0.24640008,2757.7,2757.4,0.77658214]
[1764619458909,0.24640008,2757.7,2757.6,0.19958214]
[1764619459216,3.87263498,2757.7,2757.5,0.19958214]
[1764619459421,0.3872635,2757.6,2757.1,0.577]
[1764619459618,0.24640008,2757.7,2757.2,0.09979107]
[1764619459818,0.24640008,2757.7,2757.3,0.09979107]
[1764619460036,0.24640008,2757.7,2757.4,0.578]
[1764619460234,0.24640008,2757.7,2757.6,0.36277804]
[1764619465032,0.24840008,2757.7,2757.6,0.36277804]
[1764619465635,3.87461032,2757.7,2757.6,0.36277804]
[1764619465946,4.62466923,2757.7,2757.4,0.578]
[1764619466321,4.62466923,2757.7,2757.3,0.09979107]
[1764619466524,4.62466923,2757.7,2757.3,0.67779107]
[1764619467017,8.25087947,2757.7,2757.3,0.578]
[1764619467316,0.983504,2757.6,2756.4,0.001]
[1764619467524,1.13109811,2757.2,2756.4,0.001]
[1764619467721,0.405504,2757.0,2756.4,0.001]
[1764619468029,0.36355014,2756.6,2756.4,0.001]
[1764619468336,0.579,2756.8,2756.4,0.001]
[1764619468543,0.36355014,2756.7,2756.4,0.001]
[1764619468738,0.405504,2756.6,2756.4,0.001]
[1764619468945,0.76905414,2756.5,2756.4,0.001]
[1764619469529,0.72559411,2756.5,2756.4,0.001]
[1764619469755,1.56423537,2756.5,2756.4,0.001]
[1764619471660,5.77102423,2756.5,2756.4,0.001]
[1764619472844,5.19202423,2756.5,2756.4,0.001]
[1764619473046,3.62718437,2757.0,2756.4,0.001]
[1764619473047,5.28513855,2757.5,2756.4,0.001]
[1764619473247,7.25268348,2757.6,2756.4,0.001]
[1764619473449,0.24840008,2757.7,2756.5,9.4848439]
[1764619473633,0.24840008,2757.7,2757.5,0.36277804]
[1764619473829,0.24840008,2757.7,2757.6,0.19958214]
[1764619474446,3.87463543,2757.7,2757.5,0.19958214]
[1764619474943,8.25092931,2757.7,2756.7,0.579]
[1764619475144,8.25092931,2757.7,2756.9,0.19958214]
[1764619475526,8.25092931,2757.7,2756.5,7.83454518]
[1764619475725,8.25092931,2757.7,2757.0,0.36277804]
[1764619477972,11.87716466,2757.7,2757.0,0.36277804]
[1764619478272,1.18771647,2757.6,2757.0,0.36277804]
[1764619479873,3.62647325,2757.5,2757.0,0.36277804]
[1764619480279,7.2529465,2757.5,2757.0,0.36277804]
[1764619480746,10.87941975,2757.5,2756.4,0.001]
[1764619480945,7.2529465,2757.5,2756.4,0.001]
[1764619481146,0.8440663,2757.4,2756.9,0.09979107]
[1764619482166,7.2534726,2757.3,2756.9,0.09979107]
[1764619482370,7.2534726,2757.3,2756.6,0.09979107]
[1764619482568,3.6267363,2757.3,2756.5,7.25553401]
[1764619482749,0.24840008,2757.7,2756.5,10.88332287]
[1764619482950,3.87463002,2757.7,2757.4,0.09979107]
[1764619483282,0.24840008,2757.7,2757.4,0.09979107]
[1764619483454,0.24840008,2757.7,2757.0,0.579]
[1764619483777,0.24840008,2757.7,2757.6,0.36277804]
[1764619485647,0.24840008,2757.7,2757.6,3.72613281]
[1764619485852,0.24840008,2757.7,2757.6,0.65287069]
[1764619486175,0.24840008,2757.7,2757.6,0.09979107]
[1764619487568,0.24840008,2757.7,2757.6,3.72613281]
[1764619490372,0.24840008,2757.7,2757.6,4.45172692]
[1764619490776,0.56854336,2759.9,2757.7,0.72559411]
[1764619490980,0.94255014,2759.8,2758.8,0.36277804]
[1764619491186,0.405504,2759.7,2758.8,0.36277804]
[1764619491483,0.66824746,2759.9,2758.9,0.09979107]
[1764619491689,0.579,2759.9,2759.0,0.36277804]
[1764619491883,0.405504,2760.0,2759.1,0.09979107]
[1764619492091,1.19583156,2759.9,2759.1,0.09979107]
[1764619492291,1.19583156,2759.9,2759.1,0.36277804]
[1764619492292,8.44257006,2759.9,2759.1,0.36277804]
[1764619492495,4.81920081,2759.9,2759.0,4.2034882]
[1764619492652,1.19583156,2759.9,2759.6,0.09979107]
[1764619492856,7.24603112,2760.2,2759.7,0.36277804]
[1764619493161,7.24603112,2760.2,2759.3,0.579]
[1764619493361,7.24603112,2760.2,2759.4,0.36277804]
[1764619493664,7.24603112,2760.2,2759.6,0.09979107]
[1764619493859,1.08688747,2760.1,2759.6,0.09979107]
[1764619494283,7.2463768,2760.0,2759.6,0.09979107]
[1764619494456,7.2463768,2760.0,2759.4,0.36277804]
[1764619495366,3.6231884,2760.0,2759.1,0.579]
[1764619495571,3.6231884,2760.0,2759.4,0.36277804]
[1764619495776,0.72463363,2759.9,2759.1,0.579]
[1764619495950,0.72463363,2759.9,2759.2,0.09979107]
[1764619496355,7.24690194,2759.8,2759.2,0.09979107]
[1764619496649,3.62345097,2759.8,2759.2,0.09979107]
[1764619496850,7.24690194,2759.8,2759.4,0.09979107]
[1764619497083,0.79715356,2759.7,2759.4,0.09979107]
[1764619498283,7.24742716,2759.6,2759.2,0.19958214]
[1764619498492,7.24742716,2759.6,2758.8,0.09979107]
[1764619498675,10.87114074,2759.6,2758.8,0.09979107]
[1764619498873,10.87114074,2759.6,2758.5,0.579]
[1764619499076,2.25479137,2759.5,2758.7,0.09979107]
[1764619499460,2.83379137,2759.5,2758.7,0.09979107]
[1764619500267,7.24795244,2759.4,2758.7,0.09979107]
[1764619500559,10.87192866,2759.4,2758.7,0.09979107]
[1764619500754,7.24795244,2759.4,2758.6,0.36277804]
[1764619500978,1.00817438,2759.3,2758.6,0.36277804]
[1764619501205,0.79715356,2759.7,2758.2,0.579]
[1764619501206,0.79715356,2759.7,2759.1,0.19958214]
[1764619501359,7.24718218,2759.7,2758.9,0.09979107]
[1764619501559,0.002,2759.9,2758.5,0.579]
[1764619501560,7.97432197,2759.9,2759.3,0.09979107]
[1764619501791,7.97432197,2759.9,2758.6,9.34388735]
[1764619501792,0.7974322,2759.8,2759.5,0.09979107]
[1764619502109,0.7974322,2759.8,2758.0,1.13109811]
[1764619502110,0.7974322,2759.8,2758.2,9.34388735]
[1764619502288,0.7974322,2759.8,2759.0,0.09979107]
[1764619502598,7.24716454,2759.7,2759.0,0.09979107]
[1764619502758,0.80445967,2759.6,2759.0,0.09979107]
[1764619503195,0.80445967,2759.6,2759.0,3.98725879]
[1764619503894,0.80445967,2759.6,2759.0,0.36277804]
[1764619504490,3.62384489,2759.5,2759.0,3.98726816]
[1764619506203,4.42824299,2759.6,2759.0,3.98726816]
[1764619507264,8.05202631,2759.6,2759.0,3.98726816]
[1764619507467,4.42824299,2759.6,2759.0,3.98726816]
[1764619507692,8.05202631,2759.6,2759.0,3.98726816]
[1764619508289,8.05202631,2759.6,2759.0,0.36277804]
[1764619508689,4.42824299,2759.6,2758.8,3.62476439]
[1764619508899,3.62378332,2759.6,2759.0,0.36277804]
[1764619509096,3.62533976,2759.9,2758.8,10.87429317]
[1764619509297,0.002,2759.9,2759.0,9.34388735]
[1764619509508,0.002,2759.9,2759.8,0.09979107]
[1764619510468,0.002,2759.9,2759.8,3.72324204]
[1764619510896,0.002,2759.9,2759.8,4.45792345]
[1764619511596,0.002,2759.9,2759.8,0.83447248]
[1764619511799,0.002,2759.9,2759.6,0.19958214]
[1764619511973,0.002,2759.9,2759.8,0.19958214]
[1764619512174,0.002,2759.9,2759.7,0.29937321]
[1764619512407,0.002,2759.9,2759.0,0.29937321]
[1764619512610,0.72559411,2759.8,2759.0,0.29937321]
[1764619512907,7.24863936,2759.9,2759.3,0.09979107]
[1764619512908,0.79742335,2759.7,2759.3,0.09979107]
[1764619513073,0.002,2759.9,2759.4,0.09979107]
[1764619513273,0.002,2759.9,2759.6,0.09979107]
[1764619513496,0.002,2759.9,2759.8,0.09979107]
[1764619513873,0.72683812,2759.9,2759.8,0.09979107]
[1764619514080,0.72683812,2759.9,2759.6,0.36277804]
[1764619514276,0.002,2759.9,2759.6,0.36277804]
[1764619514487,0.002,2759.9,2759.7,3.62358227]
[1764619514709,0.002,2759.9,2759.6,3.98642261]
[1764619515304,0.002,2759.9,2759.6,0.36277804]
[1764619515796,0.002,2759.9,2759.6,3.62367954]
[1764619516122,0.002,2759.9,2759.8,0.36277804]
[1764619516321,0.002,2759.9,2759.7,0.36277804]
[1764619517298,0.002,2759.9,2759.5,0.36277804]
[1764619518210,0.002,2759.9,2759.8,0.36277804]
[1764619519709,0.002,2759.9,2759.8,3.98622901]
[1764619519915,0.002,2759.9,2759.8,0.36277804]
[1764619520289,0.002,2759.9,2759.8,3.98622901]
[1764619520485,0.002,2759.9,2759.8,1.18165835]
[1764619520683,0.002,2759.9,2759.8,4.80510932]
[1764619521387,0.002,2759.9,2759.8,1.18165835]
[1764619521891,0.002,2759.9,2759.8,4.80510723]
[1764619523120,0.002,2759.9,2759.8,0.36277595]
[1764619523435,9.74939135,2761.2,2759.8,0.36277595]
[1764619523436,0.56839679,2762.4,2759.8,18.82156524]
[1764619523590,7.24008108,2762.4,2760.5,9.34388735]
[1764619523920,1.08936481,2762.3,2761.3,0.36277595]
[1764619524122,1.81495892,2762.3,2761.3,0.36277595]
[1764619524290,1.45140878,2762.3,2761.3,0.36277595]
[1764619524699,0.72559411,2762.1,2761.3,0.36277595]
[1764619524903,0.79661994,2762.0,2761.3,0.36277595]
[1764619525728,0.79661994,2762.0,2761.8,0.36277595]
[1764619526027,7.96624829,2762.3,2761.8,0.36277595]
[1764619526340,4.20611066,2762.5,2761.2,0.72559411]
[1764619526341,0.58617339,2762.5,2761.2,0.72559411]
[1764619526624,0.01806563,2762.5,2762.3,0.09979107]
[1764619526828,0.01806563,2762.5,2762.0,0.58]
[1764619526997,0.01806563,2762.5,2762.1,0.09979107]
[1764619527399,0.01806563,2762.5,2762.1,0.37203448]
[1764619527598,0.01806563,2762.5,2762.1,0.47182555]
[1764619527829,0.01806563,2762.5,2762.4,9.44367842]
[1764619528014,0.01806563,2762.5,2762.4,10.02367842]
[1764619528217,0.72631407,2765.2,2762.4,11.71918242]
[1764619528527,0.45868019,2765.1,2763.3,9.34388735]
[1764619528686,0.45868019,2765.1,2764.4,3.6174215]
[1764619528891,0.24417714,2765.3,2765.2,0.09979107]
[1764619529099,1.08740369,2766.9,2765.2,0.581]
[1764619529322,7.22282412,2769.0,2766.7,9.34388735]
[1764619529524,7.22282412,2769.0,2766.8,1.05059367]
[1764619529525,10.83423618,2769.0,2766.8,1.05059367]
[1764619529689,0.582,2769.1,2767.1,9.34388735]
[1764619529891,0.36355014,2769.0,2767.8,0.09979107]
[1764619530138,10.80630271,2769.3,2767.6,0.36277595]
[1764619530306,0.36355014,2768.5,2767.5,0.09979107]
[1764619530625,0.36355014,2767.7,2766.5,0.09979107]
[1764619530921,0.36355014,2767.7,2766.2,0.583]
[1764619530922,0.72559411,2767.4,2766.2,0.09979107]
[1764619531240,0.72559411,2767.4,2765.5,12.95986919]
[1764619531241,4.1783596,2768.9,2766.8,9.34388735]
[1764619531405,9.34388735,2768.3,2766.3,0.94577595]
[1764619531738,0.0997041,2768.1,2766.6,9.34388735]
[1764619532018,0.0997041,2768.1,2767.0,0.09979107]
[1764619532019,0.584,2768.0,2767.0,0.09979107]
[1764619532397,0.41783596,2768.8,2767.0,9.34388735]
[1764619532598,0.41783596,2768.8,2767.8,0.09979107]
[1764619532809,0.41783596,2768.8,2767.7,0.584]
[1764619533012,0.584,2769.1,2768.3,0.36277595]
[1764619533225,0.56669848,2769.4,2767.8,9.34388735]
[1764619533410,3.61062969,2769.6,2767.5,9.34388735]
[1764619533411,7.80525938,2769.6,2767.5,9.34388735]
[1764619533722,7.80525938,2769.6,2767.9,9.92788735]
[1764619533723,0.584,2769.5,2767.9,9.92788735]
[1764619534024,0.72559411,2769.7,2768.4,0.36277595]
[1764619534225,9.92788735,2769.8,2766.8,12.95817099]
[1764619534226,0.405504,2768.8,2766.8,12.95817099]
[1764619534521,0.94855014,2768.9,2767.2,9.7066633]
[1764619534721,0.94855014,2768.9,2766.9,2.60541121]
[1764619534722,0.585,2768.9,2766.9,2.60541121]
[1764619534890,0.72559411,2768.7,2768.0,0.09979107]
[1764619535096,0.72559411,2768.7,2766.7,9.34388735]
[1764619535097,0.794894,2768.6,2765.5,3.61593225]
[1764619535321,0.72559411,2768.4,2765.6,14.46340756]
[1764619535509,0.5052081,2768.3,2766.4,0.09979107]
[1764619535706,0.5052081,2768.3,2767.3,0.19958214]
[1764619536026,0.794894,2768.6,2766.5,9.92888735]
[1764619536197,0.794894,2768.6,2767.0,0.585]
[1764619536393,0.794894,2768.6,2768.1,0.36277595]
[1764619536600,3.61167292,2768.8,2768.1,0.36277595]
[1764619536792,0.72559411,2769.0,2768.1,0.36277595]
[1764619536793,3.61193382,2768.6,2768.1,0.36277595]
[1764619537107,7.22386764,2768.6,2768.0,0.09979107]
[1764619537307,0.78088676,2768.5,2768.0,0.09979107]
[1764619537496,0.78088676,2768.5,2767.3,3.61359435]
[1764619537821,0.78088676,2768.5,2767.8,0.09979107]
[1764619538021,0.405504,2768.4,2767.5,0.19958214]
[1764619538225,0.19119849,2768.3,2767.3,0.36277595]
[1764619538397,0.19119849,2768.3,2767.1,3.6138918]
[1764619538594,0.77619849,2768.3,2767.1,3.6138918]
[1764619538820,0.19119849,2768.3,2767.1,3.6138918]
[1764619539023,0.72559411,2768.3,2766.6,3.61454492]
[1764619539228,1.08914425,2768.3,2767.0,0.09979107]
[1764619539524,1.19258085,2768.2,2766.5,0.585]
[1764619539846,9.34388735,2769.4,2766.9,9.34388735]
[1764619540008,3.61154883,2768.9,2767.7,9.34388735]
[1764619540261,0.5666598,2769.5,2768.5,9.7066633]
[1764619540539,0.585,2770.3,2768.6,1.51017625]
[1764619540744,3.60985976,2770.2,2768.6,0.78458214]